Cogmind - Beta 13 @@@ ROGUE MODE // 2024.04.01 @ 16:48:16 Player: opdo Result: Destroyed by G-47 Trooper with Particle Gun Performance ------------- Evolutions (3) 1500 Regions Visited (8) 1600 Robots Destroyed (48) 240 Value Destroyed (1445) 1445 Prototype IDs (1) 20 Alien Tech Used (0) 0 Bonus (0) 0 TOTAL SCORE: 4805 Bonus ------- None Cogmind --------- Core Integrity 0/700 Matter 289/300 Energy 86/100 System Corruption 0% Temperature Cool (9) Movement Walking (90) Location -7/Lower Caves Parts ------- > --- POWER (2) -------- (None) > --- PROPULSION (3) --- VSS Leg > --- UTILITY (6) ------ Medium Storage Unit Signal Interpreter Hacking Suite Hacking Suite Makeshift System Shield > --- WEAPON (2) ------- (None) > --- INVENTORY (10) --- Light Ion Engine Improved Heat Sink Huge Storage Unit Structural Scanner Layered Light Armor Plating Hacking Suite Peak State ------------ > --- POWER ------------ Improved Ion Engine Improved Deuterium Engine > --- PROPULSION ------- VSS Leg VSS Leg VSS Leg > --- UTILITY ---------- Huge Storage Unit Advanced Weight Redist. System Signal Interpreter Hacking Suite Hacking Suite Makeshift System Shield > --- WEAPON ----------- Gauss Rifle Advanced Assault Cannon > --- INVENTORY -------- Light Nuclear Core Light Nuclear Core VSS Leg VSS Leg Medium Storage Unit Structural Scanner Layered Light Armor Plating Hacking Suite Assault Cannon Assault Cannon Chainsword [Rating: 41] Favorites ----------- Power Improved Ion Engine Engine Improved Ion Engine Power Core Light Nuclear Core Propulsion VSS Leg Leg VSS Leg Utility Hacking Suite Device Advanced Weight Redist. System Storage Medium Storage Unit Processor Signal Interpreter Hackware Hacking Suite Weapon Flak Cannon Energy Gun Small Laser Energy Cannon Advanced Beam Cannon Ballistic Gun Gauss Rifle Ballistic Cannon Flak Cannon Slashing Weapon Chainsword Build | -11 -10 -10 -9 -8 -8 -7 -7 -7 ------- Run | Yrd Mat Min Mat Mat Sto Fac Low Low Slots Evolved 6 | . . . 2 2 . 2 . . Power 1 | . . . . . . 1 . . Propulsion 1 | . . . . 1 . . . . Utility 4 | . . . 2 1 . 1 . . Weapon . | . . . . . . . . . Parts Attached 77 | 7 1 4 20 4 9 9 3 20 Power 15 | 1 . 1 4 1 1 1 1 5 Engine 9 | 1 . 1 3 . 1 1 1 1 Core 6 | . . . 1 1 . . . 4 Reactor . | . . . . . . . . . Propulsion 19 | 2 . 1 2 2 4 . 1 7 Treads . | . . . . . . . . . Leg 19 | 2 . 1 2 2 4 . 1 7 Wheel . | . . . . . . . . . Hover . | . . . . . . . . . Flight . | . . . . . . . . . Utility 20 | 1 1 . 6 1 2 6 1 2 Device 6 | . 1 . 3 1 . 1 . . Storage 9 | 1 . . 1 . 1 4 . 2 Processor 2 | . . . 2 . . . . . Hackware 3 | . . . . . 1 1 1 . Protection . | . . . . . . . . . Artifact . | . . . . . . . . . Weapon 23 | 3 . 2 8 . 2 2 . 6 Energy Gun 2 | 2 . . . . . . . . Energy Cannon 1 | . . . 1 . . . . . Ballistic Gun 10 | 1 . 2 4 . 2 1 . . Ballistic Cannon 8 | . . . 3 . . 1 . 4 Launcher . | . . . . . . . . . Special Weapon . | . . . . . . . . . Impact Weapon . | . . . . . . . . . Slashing Weapon 2 | . . . . . . . . 2 Piercing Weapon . | . . . . . . . . . Special Melee Weapon . | . . . . . . . . . Unidentified Prototypes 1 | . . . 1 . . . . . Parts Lost 27 | . . 1 6 . 1 . . 19 Power 7 | . . . 2 . . . . 5 Propulsion 10 | . . . 2 . 1 . . 7 Utility 2 | . . . 1 . . . . 1 Weapon 8 | . . 1 1 . . . . 6 Highest Loss Streak 8 | . . 1 4 . 1 . . 8 To Critical Strikes . | . . . . . . . . . Average Slot Usage (%) 89 | . 93 100 91 100 98 94 81 81 Engine 7 | . 14 14 4 . 1 13 8 7 Core 2 | . . . 5 9 7 . . . Leg 19 | . 28 28 14 27 26 21 16 16 Device 13 | . 7 14 21 27 25 13 7 6 Storage 9 | . 14 14 11 9 9 7 7 7 Processor 7 | . . . 11 9 9 7 7 7 Hackware 10 | . . . . . 1 14 16 23 Energy Gun 2 | . 28 13 . . . . . . Ballistic Gun 6 | . . 14 6 . 9 9 7 3 Ballistic Cannon 6 | . . . 15 18 8 4 7 3 Naked Turns . | . . . . . . . . . Heaviest Build 107 | 12 13 13 99 99 99 33 32 107 Greatest Support 48 | 20 20 20 26 43 48 48 36 45 Greatest Overweight (x) 9 | . . . 9 2 2 1 1 3 Average Overweight (x) . | . . . 1 2 . . . 1 Largest Inventory Capacity 25 | 8 8 8 25 25 25 25 10 25 Average Capacity 13 | 6 8 8 13 25 12 10 10 16 Most Carried 11 | 3 7 8 11 10 10 10 10 11 Average Carried 8 | 1 3 7 8 8 9 9 9 9 Final Capacity 25 | 8 8 8 25 25 10 10 10 10 Final Carried 11 | 1 6 8 11 8 9 10 9 6 Class Distribution -------------------- 41% | Hacker-Mutant 41% | Scavenger-Mutant 15% | Mutant Dominant Class ---------------- Mutant | -10/Materials Mutant | -10/Mines Scavenger-Mutant | -9/Materials Scavenger-Mutant | -8/Materials Scavenger-Mutant | -8/Storage Scavenger-Mutant | -7/Factory Hacker-Mutant | -7/Lower Caves Hacker-Mutant | -7/Lower Caves Resources | -11 -10 -10 -9 -8 -8 -7 -7 -7 ----------- Run | Yrd Mat Min Mat Mat Sto Fac Low Low Matter Collected 1664 | 90 190 63 303 . 403 . 87 528 Remotely . | . . . . . . . . . Salvage Created 1520 | . 127 174 530 . 340 . . 349 Parts 122 | . 12 14 46 . 32 . . 18 Haulers Intercepted 2 | . . . 1 . 1 . . . Recyclers Shooed 2 | . . . . . 2 . . . Parts Field Recycled . | . . . . . . . . . Retrieved Matter . | . . . . . . . . . Parts Self-Destructed 7 | . . . . . . . . 7 Prevented . | . . . . . . . . . Kills | -11 -10 -10 -9 -8 -8 -7 -7 -7 ------- Run | Yrd Mat Min Mat Mat Sto Fac Low Low Combat Hostiles Destroyed 43 | . 2 6 17 . 9 . . 9 Melee 3 | . . . . . 1 . . 2 Guns 16 | . 1 6 5 . 2 . . 2 Cannons 20 | . . . 9 . 6 . . 5 AOE 3 | . . . 3 . . . . . Classes Destroyed 8 | . 3 1 2 . . . . 2 Builder 2 | . 1 . 1 . . . . . Hauler 2 | . . . 1 . 1 . . . Watcher 1 | . 1 . . . . . . . Swarmer 17 | . . 3 7 . 3 . . 4 Grunt 11 | . 2 3 4 . 1 . . 1 Sentry 11 | . . . 6 . 5 . . . Samaritan 1 | . . . . . . . . 1 Thug 1 | . . . . . . . . 1 Butcher 3 | . . . . . . . . 3 Best Kill Streak 5 | . 2 3 5 . 3 . . 4 Combat Bots Only 5 | . 2 3 5 . 3 . . 4 Max Kills in Single Turn 3 | . 1 1 3 . 1 . . 1 Gunslinging . | . . . . . . . . . Exploded 3 | . . . 3 . . . . . Melee 1 | . . . . . 1 . . 1 Uniques/NPCs Destroyed . | . . . . . . . . . Combat | -11 -10 -10 -9 -8 -8 -7 -7 -7 -------- Run | Yrd Mat Min Mat Mat Sto Fac Low Low Hostile Shots Fired 358 | . 15 36 80 . 59 . . 168 Missed 82 | . 3 7 20 . 13 . . 39 Damage Taken 4666 | . 180 349 877 . 577 . . 2683 Core 1066 | . 29 102 121 . 102 . . 712 Absorbed by Shields . | . . . . . . . . . Core Remaining (%) 74 | 100 . 47 69 . 81 . . . Volleys Fired 141 | . 14 24 41 2 30 . . 30 Largest 2 | . 2 2 2 2 2 . . 2 Hottest 92 | . 80 80 88 88 88 . . 92 Shots Fired 265 | . 28 48 81 4 60 . . 44 Gun 154 | . 28 48 47 . 20 . . 11 Cannon 111 | . . . 34 4 40 . . 33 Launcher . | . . . . . . . . . Special . | . . . . . . . . . Kinetic 212 | . . 23 81 4 60 . . 44 Thermal 53 | . 28 25 . . . . . . Explosive . | . . . . . . . . . Electromagnetic . | . . . . . . . . . Robot Hit Streak 13 | . 9 10 13 2 8 . . 7 Robot Miss Streak 21 | . 3 4 15 8 21 . . 4 Penetration Max 1 | . . . . . . . . 1 Secondary Targets . | . . . . . . . . . Shots Hit Robots 189 | . 20 30 56 3 44 . . 36 Core Hits 119 | . 7 12 45 1 36 . . 18 Critical Kills . | . . . . . . . . . Critical Parts Destroyed 1 | . . . . . . . . 1 Critical Strikes 2 | . . . . . . . . 2 Destroy 1 | . . . . . . . . 1 Blast 1 | . . . . . . . . 1 Melee Attacks 7 | . . . . . . . . 7 Impact . | . . . . . . . . . Slashing 7 | . . . . . . . . 7 Piercing . | . . . . . . . . . Sneak Attacks 2 | . . . . . . . . 2 Combat Hostiles 1 | . . . . . . . . 1 Follow-up Attacks . | . . . . . . . . . Damage Inflicted 3350 | . 231 295 1055 31 655 . . 1083 Guns 1300 | . 231 295 352 . 220 . . 202 Cannons 1484 | . . . 410 31 425 . . 618 Explosions 276 | . . . 276 . . . . . Melee 246 | . . . . . . . . 246 Ramming 44 | . . . 17 . 10 . . 17 Kinetic 2373 | . . 115 762 31 645 . . 820 Thermal 687 | . 231 180 276 . . . . . Explosive . | . . . . . . . . . Electromagnetic . | . . . . . . . . . Impact . | . . . . . . . . . Slashing 246 | . . . . . . . . 246 Piercing . | . . . . . . . . . Highest Corruption . | . . . . . . . . . Average Corruption . | . . . . . . . . . Corruption Purged . | . . . . . . . . . Corruption Blocked . | . . . . . . . . . Overload Shots . | . . . . . . . . . Overflow Damage 58 | . . . 58 . . . . . Projectiles . | . . . . . . . . . Explosions 58 | . . . 58 . . . . . Melee . | . . . . . . . . . Knockbacks 37 | . . . 14 1 10 . . 12 Impact . | . . . . . . . . . Kinetic 33 | . . . 11 1 10 . . 11 Secondary 4 | . . . 3 . . . . 1 Self-Inflicted Damage 169 | . . . 169 . . . . . Shots 2 | . . . 2 . . . . . Rammed . | . . . . . . . . . Targets Rammed 12 | . . . 4 . 2 . . 6 Kicked 12 | . . . 4 . 2 . . 6 Crushed . | . . . . . . . . . Highest Temperature 273 | . 273 153 115 30 189 . . 81 Average Temperature 61 | . 126 57 39 16 76 . . 27 Received Heat Transfer 1680 | . 99 171 222 . 153 . . 1035 Effects 2 | . 2 . . . . . . . Interference 2 | . 2 . . . . . . . Siege Activations . | . . . . . . . . . Robots Corrupted . | . . . . . . . . . Combat Hostiles . | . . . . . . . . . Parts Fried . | . . . . . . . . . Impact Corruptions . | . . . . . . . . . Robots Melted 1 | . 1 . . . . . . . Combat Hostiles 1 | . 1 . . . . . . . Parts Melted 2 | . 1 . 1 . . . . . Heat Transferred 1075 | . 525 400 150 . . . . . Parts Sabotaged . | . . . . . . . . . Parts Stolen . | . . . . . . . . . Parts Stripped . | . . . . . . . . . Power Chain Reactions . | . . . . . . . . . Alert | -11 -10 -10 -9 -8 -8 -7 -7 -7 ------- Run | Yrd Mat Min Mat Mat Sto Fac Low Low Peak Influence 381 | . 74 113 301 167 381 95 . . Initial 122 | . . 28 27 122 70 81 . . Average 114 | . 30 76 142 136 227 59 . . Maximum Alert Level 1 | . . . 1 . 1 . . . Low Security (%) 82 | 100 100 100 69 100 50 100 . . Level 1 17 | . . . 30 . 49 . . . Level 2 . | . . . . . . . . . Level 3 . | . . . . . . . . . Level 4 . | . . . . . . . . . Level 5 . | . . . . . . . . . High Security . | . . . . . . . . . Max Security . | . . . . . . . . . Squads Dispatched 4 | . . . 1 . 2 1 . . Investigation 1 | . . . . . . 1 . . Extermination . | . . . . . . . . . Reinforcement 3 | . . . 1 . 2 . . . Assault . | . . . . . . . . . Garrison . | . . . . . . . . . Intercept . | . . . . . . . . . Searches Triggered . | . . . . . . . . . Construction Impeded . | . . . . . . . . . Haulers Reinforced . | . . . . . . . . . Active Scanning Responses . | . . . . . . . . . Cargo Convoy Interrupts . | . . . . . . . . . Stealth | -11 -10 -10 -9 -8 -8 -7 -7 -7 --------- Run | Yrd Mat Min Mat Mat Sto Fac Low Low Distress Signals 3 | . . . 2 . 1 . . . Communications Jammed . | . . . . . . . . . Distress Signals . | . . . . . . . . . Times Spotted 76 | . 4 6 25 3 19 2 . 17 Peak Tracking Total 6 | . 2 3 6 2 5 1 . 4 Tactical Retreats 3 | . . . . . . . . 3 Traps | -11 -10 -10 -9 -8 -8 -7 -7 -7 ------- Run | Yrd Mat Min Mat Mat Sto Fac Low Low Traps Triggered 2 | . . . . . 1 1 . . Indirectly . | . . . . . . . . . Trap Hack Attempts . | . . . . . . . . . Triggered . | . . . . . . . . . Disarmed . | . . . . . . . . . Reprogrammed . | . . . . . . . . . Reused . | . . . . . . . . . Traps Extracted . | . . . . . . . . . Installed . | . . . . . . . . . Triggered . | . . . . . . . . . Machines | -11 -10 -10 -9 -8 -8 -7 -7 -7 ---------- Run | Yrd Mat Min Mat Mat Sto Fac Low Low Machines Disabled 4 | . . . 4 . . . . . Max in Single Turn 2 | . . . 2 . . . . . Machines Repaired . | . . . . . . . . . Machines Dismantled . | . . . . . . . . . Machines Sabotaged . | . . . . . . . . . Overloaded Fab Kills . | . . . . . . . . . Hacking | -11 -10 -10 -9 -8 -8 -7 -7 -7 --------- Run | Yrd Mat Min Mat Mat Sto Fac Low Low Machines Accessed 16 | . 2 1 . 2 3 7 1 . Terminals 10 | . 2 1 . 1 3 3 . . Fabricators 1 | . . . . . . 1 . . Repair Stations . | . . . . . . . . . Recycling Units 2 | . . . . 1 . 1 . . Scanalyzers 2 | . . . . . . 2 . . Garrison Access . | . . . . . . . . . Total Hacks 31 | . 5 1 . 4 5 15 1 . Successful 18 | . 3 1 . 2 4 7 1 . Failed 13 | . 2 . . 2 1 8 . . Catastrophic . | . . . . . . . . . Database Lockouts . | . . . . . . . . . Manual 15 | . 5 1 . 1 5 3 . . Terminals 18 | . 5 1 . 1 5 6 . . Fabricators 1 | . . . . . . 1 . . Repair Stations . | . . . . . . . . . Recycling Units 6 | . . . . 3 . 3 . . Scanalyzers 5 | . . . . . . 5 . . Garrison Access . | . . . . . . . . . Terminal Hacks 5 | . 1 . . . . 3 1 . Robot Analysis 1 | . . . . . . 1 . . Open Door 1 | . . . . . . . 1 . Open DSF 1 | . . . . . . 1 . . Branch Access Points 2 | . 1 . . . . 1 . . Fabricator Hacks 1 | . . . . . . 1 . . Network Status 1 | . . . . . . 1 . . Repair Station Hacks . | . . . . . . . . . Recycling Unit Hacks 1 | . . . . 1 . . . . Retrieve Components 1 | . . . . 1 . . . . Scanalyzer 3 | . . . . . . 3 . . Insert Component 2 | . . . . . . 2 . . Analyze 1 | . . . . . . 1 . . Garrison Access Hacks . | . . . . . . . . . Unauthorized Hacks 8 | . 2 1 . 1 4 . . . Terminals 8 | . 2 1 . 1 4 . . . Assimilate 1 | . . . . . 1 . . . Botnet 7 | . 2 1 . 1 3 . . . Fabricators . | . . . . . . . . . Repair Stations . | . . . . . . . . . Recycling Units . | . . . . . . . . . Scanalyzers . | . . . . . . . . . Garrison Access . | . . . . . . . . . Data Cores Recovered . | . . . . . . . . . Used . | . . . . . . . . . Hacking Detections 12 | . 2 . . 1 3 6 . . Full Trace Events 1 | . . . . . . 1 . . Feedback Events . | . . . . . . . . . Feedback Blocked . | . . . . . . . . . Robot Schematics Acquired . | . . . . . . . . . Robots Built . | . . . . . . . . . Authchips . | . . . . . . . . . Time . | . . . . . . . . . Total Robot Build Rating . | . . . . . . . . . Part Schematics Acquired 1 | . . . . . . 1 . . Parts Built . | . . . . . . . . . Authchips . | . . . . . . . . . Time . | . . . . . . . . . Total Part Build Rating . | . . . . . . . . . Parts Repaired . | . . . . . . . . . Time . | . . . . . . . . . Parts Recycled . | . . . . . . . . . Recycled Matter . | . . . . . . . . . Retrieved Matter . | . . . . . . . . . Retrieved Components . | . . . . . . . . . Parts Scanalyzed 2 | . . . . . . 2 . . Part Schematics Acquired 1 | . . . . . . 1 . . Parts Damaged . | . . . . . . . . . Bothacking | -11 -10 -10 -9 -8 -8 -7 -7 -7 ------------ Run | Yrd Mat Min Mat Mat Sto Fac Low Low Used RIF Installer . | . . . . . . . . . Robots Hacked . | . . . . . . . . . Non-combat . | . . . . . . . . . Combat . | . . . . . . . . . Robot Hacks Applied . | . . . . . . . . . Relay Couplers Released . | . . . . . . . . . Fabnet Peak Effective % . | . . . . . . . . . Robots Rewired . | . . . . . . . . . Allies Hacked . | . . . . . . . . . Hacks Repelled . | . . . . . . . . . Allies | -11 -10 -10 -9 -8 -8 -7 -7 -7 -------- Run | Yrd Mat Min Mat Mat Sto Fac Low Low Total Allies . | . . . . . . . . . Largest Group . | . . . . . . . . . Highest-Rated Group . | . . . . . . . . . Highest-Rated Ally . | . . . . . . . . . Total Orders . | . . . . . . . . . Ally Attacks . | . . . . . . . . . Total Damage . | . . . . . . . . . Kills . | . . . . . . . . . Allies Corrupted . | . . . . . . . . . Allies Melted . | . . . . . . . . . Intel | -11 -10 -10 -9 -8 -8 -7 -7 -7 ------- Run | Yrd Mat Min Mat Mat Sto Fac Low Low Robot Analysis Total 1 | . . . . . . 1 . . Derelict Logs Recovered 3 | . . 1 . . . . 1 1 Drone Launches . | . . . . . . . . . Drone Recoveries . | . . . . . . . . . Exploration | -11 -10 -10 -9 -8 -8 -7 -7 -7 ------------- Run | Yrd Mat Min Mat Mat Sto Fac Low Low Turns Passed 5024 | 47 294 470 1013 180 454 621 436 1509 Spaces Moved 2749 | 31 203 304 315 65 248 572 290 721 Core 176 | 6 . . . . . . . 170 Treads . | . . . . . . . . . Legs 2573 | 25 203 304 315 65 248 572 290 551 Wheels . | . . . . . . . . . Hover . | . . . . . . . . . Flight . | . . . . . . . . . Fastest Speed 50 | 50 120 120 120 260 100 90 90 90 Average Speed 156 | 106 120 120 247 261 134 103 147 188 Slowest Speed 750 | 120 120 120 750 263 263 180 180 270 Overloaded Moves . | . . . . . . . . . Propulsion Burnouts . | . . . . . . . . . Robots Hopped . | . . . . . . . . . Cave-ins Triggered . | . . . . . . . . . Exploration Rate (%) 36 | 3 40 64 38 10 42 18 46 70 Regions Visited 8 Branch Regions 4 Pre-discovered Areas 1 | . . 1 . . . . . . Known Exits Taken 6 | . 1 . 1 1 1 1 1 . Unknown Exits Taken 2 | 1 . 1 . . . . . . Scrap Searched 4 | . . 1 . . . . 1 2 Spaces Dug . | . . . . . . . . . Terrain Destroyed 87 | . . . 85 . . . . 2 Melee . | . . . . . . . . . Projectile 2 | . . . . . . . . 2 AOE 85 | . . . 85 . . . . . Terrain Rammed . | . . . . . . . . . Walls Destroyed . | . . . . . . . . . Machines Disabled . | . . . . . . . . . Actions | -11 -10 -10 -9 -8 -8 -7 -7 -7 --------- Run | Yrd Mat Min Mat Mat Sto Fac Low Low Total 3214 | 44 225 368 472 72 313 604 299 817 Wait 99 | . 2 22 53 . 1 7 . 14 Move 2741 | 30 202 303 314 64 247 571 289 721 Hop . | . . . . . . . . . Pick Up 91 | 7 6 9 25 1 13 10 3 17 Fast Attach . | . . . . . . . . . Attach 51 | 6 1 1 12 3 6 2 3 17 Detach . | . . . . . . . . . Swap 26 | 1 . 3 8 1 3 7 . 3 Drop 44 | . . 6 15 1 11 7 1 3 Fire 141 | . 14 24 41 2 30 . . 30 Melee 6 | . . . . . . . . 6 Ram . | . . . . . . . . . Kick 12 | . . . 4 . 2 . . 6 Crush . | . . . . . . . . . Escape Stasis . | . . . . . . . . . Rewire 3 | . . . . . . . 3 . Trap . | . . . . . . . . . Miscellaneous . | . . . . . . . . . Route ------- -11/Scrapyard -10/Materials (discovered 3 exits: *Mat / *Min x2) -10/Mines -9/Materials -8/Materials -8/Storage -7/Factory (discovered 3 exits: *Fac / *Low x2) -7/Lower Caves -7/Lower Caves History --------- Turn | Location | Event 6 | -11/Scrapyard | Discovered new exit (range 15) 48 | -11/Scrapyard | Entered Materials 150 | -10/Materials | Identified exit to Mines 185 | -10/Materials | Discovered new exit (range 15) 315 | -10/Materials | Build established: Mutant 342 | -10/Materials | Entered Mines 661 | -10/Mines | Learned Materials terminal intel 758 | -10/Mines | Learned location of Storage (-8) 778 | -10/Mines | Discovered new exit (range 6) 791 | -10/Mines | Core integrity fell below 50% 812 | -10/Mines | Entered Materials 812 | -9/Materials | Evolved 2 slots: Utility x2 813 | -9/Materials | Loaded intel: 12 terminal locations 915 | -9/Materials | Lost 4 parts (1p2n1u) 1157 | -9/Materials | Build established: Scavenger-Mutant 1793 | -9/Materials | Discovered new exit (range 8) 1822 | -9/Materials | Identified exit to Materials 1825 | -9/Materials | Entered another Materials area 1825 | -8/Materials | Evolved 2 slots: Propulsion x1, Utility x1 1992 | -8/Materials | Discovered new exit (range 6) 2002 | -8/Materials | Identified exit to Storage 2005 | -8/Materials | Entered Storage 2443 | -8/Storage | Discovered new exit (range 16) 2457 | -8/Storage | Identified exit to Factory 2459 | -8/Storage | Entered Factory 2459 | -7/Factory | Evolved 2 slots: Power x1, Utility x1 2716 | -7/Factory | Identified exit to DSF 2787 | -7/Factory | Discovered new exit (range 13) 2802 | -7/Factory | Identified exit to Factory 2969 | -7/Factory | Identified exit to Lower Caves 3080 | -7/Factory | Entered Lower Caves 3231 | -7/Lower Caves | Build established: Hacker-Mutant 3268 | -7/Lower Caves | Learned 8 Factory zone layouts 3430 | -7/Lower Caves | Spotted B-75 Beast 3485 | -7/Lower Caves | Discovered new exit (range 12) 3495 | -7/Lower Caves | Identified exit to Lower Caves 3516 | -7/Lower Caves | Entered another Lower Caves area 3517 | -7/Lower Caves | Encountered a Warlord checkpoint 3532 | -7/Lower Caves | Learned location of 1 exit from Proximity Caves 4280 | -7/Lower Caves | Ambushed by wild Derelicts 4349 | -7/Lower Caves | Core integrity fell below 50% 4370 | -7/Lower Caves | Lost 8 parts (4p1n3w) 4545 | -7/Lower Caves | Core integrity fell below 20% 4561 | -7/Lower Caves | Lost 7 parts (1p3n3w) 5025 | -7/Lower Caves | Destroyed by G-47 Trooper with Particle Gun Last Messages --------------- 04524_ Aluminum Leg fries itself beyond repair. 04528_ G-50 Soldier knocked back. 04529_ Imp. Heat Sink fries itself beyond repair. 04530_ Assault Cannon destroyed. 04824_ Acquired 52 matter. 04826_ Acquired 10 matter. 04828_ Acquired 4 matter. 04946_ Acquired 13 matter. 04949_ Acquired Lgt. Ion Engine. 04986_ Kicked G-47 Trooper out of the way. 04987_ Adv. Weight Redist. System destroyed. 04987_ Kicked G-47 Trooper out of the way. 04988_ Kicked G-47 Trooper. 04989_ Critical hit (Burn: +37). 04989_ Kicked G-47 Trooper out of the way. 04991_ Carbon-fiber Leg destroyed. 04992_ Kicked G-47 Trooper out of the way. 05003_ Critical hit (Burn: +37). 05015_ Carbon-fiber Leg destroyed. Map ----- +----------------------------------------------------+ | ????????????????# ### ##????############# | | ????????????????## ##??###?????????????????# | | ?????????????????# ##??????????????????????## # | | ?????????????????# #???????????????????????### | | ?????????????????# ####?????????????????????????# | | ???????????# ##### #????????????????????????????# | | ???????????# #??#####?????????????????????# | | ???????????### ##? %##??#?????????????????# | | ???????####??## ## % ## #?????????????????? | | ??????## ######### % % ## ????????????? | | ??????# #????# ????????????? | | ?????## #????# % %% % ????????????? | | ?????# #?????### % %% ????????????? | | ?????# #???????## % ????????????? | | ??????# #??????## % % % ????????????? | | ??????# #??????# ## ### #?????????????? | | ??????## #??????# ##? ##???????????????????? | | ???????# #?????## ##??? ##????????????????????? | | ???????# #?##### ##????#?????????????????????? | | ???????# #### ## %###????????????????????????? | | ???????# #?# #??####??????????????????? | | ???????# ### ##### #??????????????????? | | ??????## ## %##### #???????????????????? | | ??????# ### % #????????????????????? | | ??????# ##?# #?????????????????????? | | ??????## ##??# #### @ ##????????????????????? | | ???????# #???# #### ##???????????????????? | | ???????# ##???# ## #???????????????????? | | ???????# ##??### gg #???????????????????? | | ???????## #???# ##???????????????????? | | ????????####???## ###### ##????????????????????? | | ????????????????#####????###?????????????????????? | | ?????????????????????????????????????????????????? | | ?????????????????????????????????????????????????? | | ?????????????????????????????????????????????????? | | ?????????????????????????????????????????????????? | | ?????????????????????????????????????????????????? | | ?????????????????????????????????????????????????? | | ?????????????????????????????????????????????????? | | ?????????????????????????????????????????????????? | | ?????????????????????????????????????????????????? | | ?????????????????????????????????????????????????? | | ?????????????????????????????????????????????????? | | ?????????????????????????????????????????????????? | | ?????????????????????????????????????????????????? | | ?????????????????????????????????????????????????? | | ?????????????????????????????????????????????????? | | | | | | | +----------------------------------------------------+ Best States ------------- Heat Dissipation 34 Energy Generation 23 Energy Capacity 455 Matter Stores 300 Matter Capacity 300 Sight Range 18 Robot Scan Range 14 Terrain Scan Range 14 Terrain Scan Density 10 Additional Mass Support 9 Evasion (%) 57 Offensive Hacking 20 Defensive Hacking 11 Item Schematics ----------------- VSS Leg | -7/Factory | Scanalyzed Robot Schematics ------------------ None Fabricated ------------ Nothing Alien Tech Used ----------------- None Achievements -------------- None Challenges ------------ None Game ------ Seed CompactAssemblyMediator Manual? 0 Play Time 00:36:59 Cumulative 22.2 hours Start 2024.04.01 @ 16:06:01 End 2024.04.01 @ 16:48:16 Sessions 1 Manual Loads 0 Difficulty Rogue Special Mode None Game No. 62 Rogue 60 Adventurer 2 Explorer 0 Win Type - Total 0 Types 0/0/0/0/0/0/0/0/0 Lore% 21 Gallery% 34 Achievement% 25 Wizard Run 0 Options --------- Layout 1 ASCII 0 Keyboard 0 Movement Arrows Keybinds 0 Fullscreen 2 Font 24/Smallcaps Map View 50x35 Zoom Use 0% Tactical HUD 1 Map Filters NONE Filters NONE Steam 1 RUN: 5f6cad9f-872c-4394-a26d-1eba5481ec86